[Event "Titled Tuesday Blitz October 25 Late 2022"]
[White "Senthil Maran K"]
[Black "Rosenberg, Evan S"]
[WhiteFideId "25035681"]
[BlackFideId "2019299"]
[WhiteElo "2109"]
[BlackElo "2370"]
[Result "1-0"]
[Round "06"]
[TimeControl "180+1"]
[Date "2022.10.26"]
[WhiteClock "0:00:51"]
[BlackClock "0:00:06"]

1. g3 {[%clk 0:03:00]}  e5 {[%clk 0:02:56]} 2. c4 {[%clk 0:02:59]}  Nc6 {[%clk 0:02:52]} 3. Bg2 {[%clk 0:02:59]}  f5 {[%clk 0:02:52]} 4. Nc3 {[%clk 0:02:57]}  Nf6 {[%clk 0:02:52]} 5. d3 {[%clk 0:02:54]}  Bb4 {[%clk 0:02:51]} 6. e3 {[%clk 0:02:53]}  e4 {[%clk 0:02:35]} 7. Ne2 {[%clk 0:02:51]}  Ne5 {[%clk 0:02:25]} 8. dxe4 {[%clk 0:02:49]}  fxe4 {[%clk 0:02:24]} 9. O-O {[%clk 0:02:49]}  Nf3+ {[%clk 0:02:22]} 10. Kh1 {[%clk 0:02:49]}  Bxc3 {[%clk 0:01:56]} 11. Nxc3 {[%clk 0:02:48]}  d5 {[%clk 0:01:57]} 12. cxd5 {[%clk 0:02:44]}  O-O {[%clk 0:01:41]} 13. Nxe4 {[%clk 0:02:39]}  Nxe4 {[%clk 0:01:37]} 14. Bxf3 {[%clk 0:02:39]}  Ng5 {[%clk 0:01:27]} 15. Bg2 {[%clk 0:02:39]}  Bh3 {[%clk 0:01:25]} 16. e4 {[%clk 0:01:32]}  Bxg2+ {[%clk 0:01:21]} 17. Kxg2 {[%clk 0:01:33]}  Nxe4 {[%clk 0:01:22]} 18. Qd4 {[%clk 0:01:30]}  Nd6 {[%clk 0:01:13]} 19. Bf4 {[%clk 0:01:26]}  Qd7 {[%clk 0:01:05]} 20. Rae1 {[%clk 0:01:23]}  Rad8 {[%clk 0:01:05]} 21. Re6 {[%clk 0:01:15]}  Nb5 {[%clk 0:00:46]} 22. Qe5 {[%clk 0:01:11]}  Qxd5+ {[%clk 0:00:45]} 23. Qxd5 {[%clk 0:01:11]}  Rxd5 {[%clk 0:00:46]} 24. Re7 {[%clk 0:00:59]}  Rf7 {[%clk 0:00:37]} 25. Rfe1 {[%clk 0:00:59]}  Rxe7 {[%clk 0:00:34]} 26. Rxe7 {[%clk 0:00:59]}  Rc5 {[%clk 0:00:35]} 27. a4 {[%clk 0:00:57]}  Nd6 {[%clk 0:00:20]} 28. Bxd6 {[%clk 0:00:56]}  cxd6 {[%clk 0:00:21]} 29. Rxb7 {[%clk 0:00:57]}  Ra5 {[%clk 0:00:18]} 30. b3 {[%clk 0:00:56]}  h5 {[%clk 0:00:18]} 31. Kf3 {[%clk 0:00:56]}  Kh7 {[%clk 0:00:18]} 32. Ke4 {[%clk 0:00:57]}  Kh6 {[%clk 0:00:17]} 33. h4 {[%clk 0:00:56]}  g6 {[%clk 0:00:16]} 34. Rb5 {[%clk 0:00:53]}  Ra6 {[%clk 0:00:14]} 35. Kd5 {[%clk 0:00:52]}  g5 {[%clk 0:00:10]} 36. a5 {[%clk 0:00:49]}  gxh4 {[%clk 0:00:09]} 37. gxh4 {[%clk 0:00:49]}  Kg6 {[%clk 0:00:09]} 38. b4 {[%clk 0:00:49]}  Kf5 {[%clk 0:00:09]} 39. Rb8 {[%clk 0:00:49]}  Kg4 {[%clk 0:00:08]} 40. Rg8+ {[%clk 0:00:49]}  Kxh4 {[%clk 0:00:08]} 41. f4 {[%clk 0:00:49]}  Kh3 {[%clk 0:00:08]} 42. f5 {[%clk 0:00:50]}  h4 {[%clk 0:00:07]} 43. f6 {[%clk 0:00:50]}  Kh2 {[%clk 0:00:07]} 44. f7 {[%clk 0:00:50]}  h3 {[%clk 0:00:08]} 45. f8=Q {[%clk 0:00:51]}  Rb6 {[%clk 0:00:06]} 46. Qf2+ {[%clk 0:00:50]}  Kh1 {[%clk 0:00:06]} 47. Qg1# {[%clk 0:00:51]} 1-0


[Site "https://www.chess.com"]

[Event "Titled Tuesday Blitz October 25 Late 2022"]
[White "Sjugirov, Sanan"]
[Black "Piesik, Piotr"]
[WhiteFideId "4189302"]
[BlackFideId "1136194"]
[WhiteElo "2609"]
[BlackElo "2323"]
[Result "0-1"]
[Round "06"]
[TimeControl "180+1"]
[Date "2022.10.26"]
[WhiteClock "0:00:12"]
[BlackClock "0:00:14"]

1. d4 {[%clk 0:03:00]}  c5 {[%clk 0:02:56]} 2. d5 {[%clk 0:03:00]}  e5 {[%clk 0:02:57]} 3. e4 {[%clk 0:02:58]}  d6 {[%clk 0:02:57]} 4. c4 {[%clk 0:02:57]}  Be7 {[%clk 0:02:57]} 5. Nc3 {[%clk 0:02:50]}  Bg5 {[%clk 0:02:56]} 6. Bxg5 {[%clk 0:02:49]}  Qxg5 {[%clk 0:02:55]} 7. Nf3 {[%clk 0:02:49]}  Qd8 {[%clk 0:02:55]} 8. Be2 {[%clk 0:02:45]}  Ne7 {[%clk 0:02:54]} 9. h4 {[%clk 0:02:43]}  O-O {[%clk 0:02:54]} 10. h5 {[%clk 0:02:41]}  h6 {[%clk 0:02:54]} 11. Nh4 {[%clk 0:02:40]}  f5 {[%clk 0:02:53]} 12. exf5 {[%clk 0:02:39]}  Nxf5 {[%clk 0:02:53]} 13. Nxf5 {[%clk 0:02:39]}  Bxf5 {[%clk 0:02:53]} 14. Bg4 {[%clk 0:02:39]}  Qg5 {[%clk 0:02:46]} 15. Bxf5 {[%clk 0:02:39]}  Qxf5 {[%clk 0:02:37]} 16. Qe2 {[%clk 0:02:37]}  Nd7 {[%clk 0:02:34]} 17. Ne4 {[%clk 0:02:36]}  Nf6 {[%clk 0:01:44]} 18. Nxd6 {[%clk 0:02:35]}  Qg5 {[%clk 0:01:43]} 19. g3 {[%clk 0:02:24]}  e4 {[%clk 0:01:43]} 20. Rh4 {[%clk 0:02:04]}  Qe5 {[%clk 0:01:23]} 21. Nb5 {[%clk 0:01:59]}  e3 {[%clk 0:01:15]} 22. f4 {[%clk 0:01:57]}  Qe4 {[%clk 0:01:03]} 23. Nc3 {[%clk 0:01:54]}  Qf5 {[%clk 0:00:54]} 24. O-O-O {[%clk 0:01:54]}  Rfe8 {[%clk 0:00:54]} 25. Qf3 {[%clk 0:01:28]}  Ne4 {[%clk 0:00:50]} 26. g4 {[%clk 0:01:08]}  Qf6 {[%clk 0:00:49]} 27. Nxe4 {[%clk 0:01:02]}  Qxh4 {[%clk 0:00:49]} 28. d6 {[%clk 0:00:28]}  Rad8 {[%clk 0:00:45]} 29. Qxe3 {[%clk 0:00:25]}  Qxg4 {[%clk 0:00:38]} 30. d7 {[%clk 0:00:24]}  Re6 {[%clk 0:00:29]} 31. Qd3 {[%clk 0:00:03]}  Qxf4+ {[%clk 0:00:27]} 32. Nd2 {[%clk 0:00:04]}  Qd4 {[%clk 0:00:18]} 33. Qf5 {[%clk 0:00:02]}  Rf6 {[%clk 0:00:13]} 34. Qh3 {[%clk 0:00:02]}  Qxd7 {[%clk 0:00:12]} 35. Qe3 {[%clk 0:00:01]}  Rd6 {[%clk 0:00:10]} 36. b3 {[%clk 0:00:01]}  Rxd2 {[%clk 0:00:07]} 37. Rxd2 {[%clk 0:00:01]}  Qxd2+ {[%clk 0:00:08]} 38. Qxd2 {[%clk 0:00:02]}  Rxd2 {[%clk 0:00:08]} 39. Kxd2 {[%clk 0:00:03]}  g6 {[%clk 0:00:08]} 40. hxg6 {[%clk 0:00:03]}  Kg7 {[%clk 0:00:08]} 41. Ke3 {[%clk 0:00:04]}  Kxg6 {[%clk 0:00:09]} 42. Kf4 {[%clk 0:00:05]}  h5 {[%clk 0:00:08]} 43. a3 {[%clk 0:00:05]}  a5 {[%clk 0:00:07]} 44. a4 {[%clk 0:00:05]}  b6 {[%clk 0:00:08]} 45. Kf3 {[%clk 0:00:06]}  Kg5 {[%clk 0:00:08]} 46. Kg3 {[%clk 0:00:07]}  Kf5 {[%clk 0:00:08]} 47. Kh4 {[%clk 0:00:07]}  Ke4 {[%clk 0:00:09]} 48. Kxh5 {[%clk 0:00:07]}  Kd4 {[%clk 0:00:10]} 49. Kg4 {[%clk 0:00:08]}  Kc3 {[%clk 0:00:11]} 50. Kf4 {[%clk 0:00:09]}  Kxb3 {[%clk 0:00:11]} 51. Ke5 {[%clk 0:00:10]}  Kxc4 {[%clk 0:00:12]} 52. Kd6 {[%clk 0:00:11]}  Kb4 {[%clk 0:00:12]} 53. Kc6 {[%clk 0:00:12]}  Kxa4 {[%clk 0:00:13]} 54. Kxb6 {[%clk 0:00:12]}  Kb4 {[%clk 0:00:14]} 0-1


[Site "https://www.chess.com"]

[Event "Titled Tuesday Blitz October 25 Late 2022"]
[White "Sorokin, Aleksey"]
[Black "Djordjevic, Vuk"]
[WhiteFideId "24176460"]
[BlackFideId "902098"]
[WhiteElo "2476"]
[BlackElo "2456"]
[Result "1-0"]
[Round "06"]
[TimeControl "180+1"]
[Date "2022.10.26"]
[WhiteClock "0:00:56"]
[BlackClock "0:00:04"]

1. c4 {[%clk 0:03:00]}  e5 {[%clk 0:02:59]} 2. Nc3 {[%clk 0:03:00]}  Nc6 {[%clk 0:02:59]} 3. Nf3 {[%clk 0:03:00]}  g6 {[%clk 0:02:59]} 4. e3 {[%clk 0:02:56]}  Bg7 {[%clk 0:02:59]} 5. d4 {[%clk 0:02:56]}  d6 {[%clk 0:02:59]} 6. d5 {[%clk 0:02:53]}  Nce7 {[%clk 0:02:59]} 7. e4 {[%clk 0:02:52]}  f5 {[%clk 0:02:59]} 8. Bd3 {[%clk 0:02:52]}  Nf6 {[%clk 0:02:56]} 9. h4 {[%clk 0:02:52]}  f4 {[%clk 0:02:52]} 10. b4 {[%clk 0:02:50]}  a5 {[%clk 0:02:51]} 11. bxa5 {[%clk 0:02:51]}  Rxa5 {[%clk 0:02:41]} 12. a4 {[%clk 0:02:51]}  c5 {[%clk 0:02:17]} 13. Qb3 {[%clk 0:02:47]}  O-O {[%clk 0:02:13]} 14. Bd2 {[%clk 0:02:46]}  h6 {[%clk 0:02:05]} 15. Ra3 {[%clk 0:02:44]}  Ra6 {[%clk 0:01:57]} 16. Kd1 {[%clk 0:02:43]}  Bg4 {[%clk 0:01:47]} 17. Kc2 {[%clk 0:02:43]}  Qd7 {[%clk 0:01:40]} 18. Nb5 {[%clk 0:02:34]}  Rfa8 {[%clk 0:01:35]} 19. Bc3 {[%clk 0:02:31]}  Ne8 {[%clk 0:01:32]} 20. Nd2 {[%clk 0:02:31]}  Qd8 {[%clk 0:01:27]} 21. f3 {[%clk 0:02:30]}  Bd7 {[%clk 0:01:27]} 22. Raa1 {[%clk 0:02:20]}  Nc8 {[%clk 0:01:25]} 23. a5 {[%clk 0:02:19]}  b6 {[%clk 0:01:19]} 24. axb6 {[%clk 0:02:18]}  Rxa1 {[%clk 0:01:19]} 25. Rxa1 {[%clk 0:02:16]}  Rxa1 {[%clk 0:01:19]} 26. Bxa1 {[%clk 0:02:17]}  Qxb6 {[%clk 0:01:04]} 27. Bc3 {[%clk 0:02:16]}  Qd8 {[%clk 0:01:03]} 28. Qa3 {[%clk 0:02:06]}  Qxh4 {[%clk 0:01:01]} 29. Qa8 {[%clk 0:02:05]}  Qe7 {[%clk 0:00:36]} 30. Nb3 {[%clk 0:01:59]}  Bf6 {[%clk 0:00:27]} 31. Na5 {[%clk 0:01:57]}  Nb6 {[%clk 0:00:23]} 32. Qb8 {[%clk 0:01:53]}  Qd8 {[%clk 0:00:18]} 33. Qb7 {[%clk 0:01:48]}  Na4 {[%clk 0:00:15]} 34. Nc6 {[%clk 0:01:47]}  Qc8 {[%clk 0:00:13]} 35. Qxc8 {[%clk 0:01:41]}  Bxc8 {[%clk 0:00:14]} 36. Ba5 {[%clk 0:01:39]}  g5 {[%clk 0:00:07]} 37. Kb3 {[%clk 0:01:35]}  g4 {[%clk 0:00:06]} 38. fxg4 {[%clk 0:01:32]}  Bxg4 {[%clk 0:00:06]} 39. Kxa4 {[%clk 0:01:32]}  h5 {[%clk 0:00:06]} 40. Nc7 {[%clk 0:01:26]}  Kf7 {[%clk 0:00:04]} 41. Ne6 {[%clk 0:01:17]}  Bxe6 {[%clk 0:00:03]} 42. dxe6+ {[%clk 0:01:17]}  Kxe6 {[%clk 0:00:04]} 43. Be2 {[%clk 0:01:17]}  Ng7 {[%clk 0:00:04]} 44. Kb5 {[%clk 0:01:15]}  Kd7 {[%clk 0:00:04]} 45. Bb6 {[%clk 0:01:10]}  Bh4 {[%clk 0:00:04]} 46. Na5 {[%clk 0:01:06]}  Be1 {[%clk 0:00:04]} 47. Nb3 {[%clk 0:01:04]}  Bf2 {[%clk 0:00:04]} 48. Bf3 {[%clk 0:01:04]}  Bh4 {[%clk 0:00:04]} 49. Ba5 {[%clk 0:01:04]}  Bf6 {[%clk 0:00:04]} 50. Nc1 {[%clk 0:01:02]}  Be7 {[%clk 0:00:03]} 51. Nd3 {[%clk 0:01:01]}  Bh4 {[%clk 0:00:03]} 52. Be1 {[%clk 0:01:01]}  Be7 {[%clk 0:00:02]} 53. Bf2 {[%clk 0:01:01]}  Bg5 {[%clk 0:00:03]} 54. Kb6 {[%clk 0:01:01]}  Bf6 {[%clk 0:00:02]} 55. Kb7 {[%clk 0:01:00]}  Be7 {[%clk 0:00:03]} 56. Nb2 {[%clk 0:01:00]}  Bd8 {[%clk 0:00:03]} 57. Na4 {[%clk 0:01:00]}  Be7 {[%clk 0:00:02]} 58. Nb6+ {[%clk 0:01:00]}  Ke6 {[%clk 0:00:03]} 59. Kc6 {[%clk 0:01:01]}  Bf8 {[%clk 0:00:03]} 60. Bh4 {[%clk 0:01:00]}  Be7 {[%clk 0:00:03]} 61. Bxe7 {[%clk 0:00:59]}  Kxe7 {[%clk 0:00:04]} 62. Nc8+ {[%clk 0:01:00]}  Ke6 {[%clk 0:00:05]} 63. Nxd6 {[%clk 0:00:59]}  Ke7 {[%clk 0:00:05]} 64. Nf5+ {[%clk 0:00:57]}  Nxf5 {[%clk 0:00:04]} 65. exf5 {[%clk 0:00:58]}  Kf6 {[%clk 0:00:05]} 66. Be4 {[%clk 0:00:58]}  h4 {[%clk 0:00:04]} 67. Kxc5 {[%clk 0:00:56]}  f3 {[%clk 0:00:04]} 68. Bxf3 {[%clk 0:00:56]}  Kxf5 {[%clk 0:00:04]} 69. Kd5 {[%clk 0:00:56]} 1-0


[Site "https://www.chess.com"]

[Event "Titled Tuesday Blitz October 25 Late 2022"]
[White "Stoyanov, Tsvetan"]
[Black "Sanal, Vahap"]
[WhiteFideId "2917173"]
[BlackFideId "6300545"]
[WhiteElo "2349"]
[BlackElo "2574"]
[Result "1-0"]
[Round "06"]
[TimeControl "180+1"]
[Date "2022.10.26"]
[WhiteClock "0:00:06"]
[BlackClock "0:00:19"]

1. c4 {[%clk 0:03:00]}  d6 {[%clk 0:02:59]} 2. d4 {[%clk 0:02:59]}  e5 {[%clk 0:02:59]} 3. dxe5 {[%clk 0:03:00]}  dxe5 {[%clk 0:02:59]} 4. Qxd8+ {[%clk 0:03:00]}  Kxd8 {[%clk 0:03:00]} 5. Nc3 {[%clk 0:03:01]}  c6 {[%clk 0:03:00]} 6. Nf3 {[%clk 0:03:00]}  f6 {[%clk 0:03:00]} 7. e4 {[%clk 0:02:57]}  Kc7 {[%clk 0:03:00]} 8. Be3 {[%clk 0:02:57]}  Na6 {[%clk 0:02:59]} 9. O-O-O {[%clk 0:02:57]}  Bc5 {[%clk 0:02:59]} 10. Bxc5 {[%clk 0:02:55]}  Nxc5 {[%clk 0:02:59]} 11. b4 {[%clk 0:02:55]}  Ne6 {[%clk 0:03:00]} 12. c5 {[%clk 0:02:51]}  a5 {[%clk 0:02:59]} 13. a3 {[%clk 0:02:51]}  Ne7 {[%clk 0:02:57]} 14. Bc4 {[%clk 0:02:49]}  Nf4 {[%clk 0:02:56]} 15. Ne1 {[%clk 0:02:35]}  axb4 {[%clk 0:02:51]} 16. axb4 {[%clk 0:02:35]}  Ra1+ {[%clk 0:02:52]} 17. Kc2 {[%clk 0:02:33]}  Rxd1 {[%clk 0:02:51]} 18. Nxd1 {[%clk 0:02:33]}  Rd8 {[%clk 0:02:52]} 19. Ne3 {[%clk 0:02:23]}  Be6 {[%clk 0:02:44]} 20. g3 {[%clk 0:02:14]}  Bxc4 {[%clk 0:02:42]} 21. gxf4 {[%clk 0:02:13]}  Bb5 {[%clk 0:02:37]} 22. fxe5 {[%clk 0:01:50]}  fxe5 {[%clk 0:02:37]} 23. Rg1 {[%clk 0:01:50]}  Ng6 {[%clk 0:02:37]} 24. Kc3 {[%clk 0:01:40]}  Ra8 {[%clk 0:02:29]} 25. N1c2 {[%clk 0:01:13]}  Rd8 {[%clk 0:02:29]} 26. Rd1 {[%clk 0:01:12]}  Rf8 {[%clk 0:02:24]} 27. Nf5 {[%clk 0:01:09]}  Rf7 {[%clk 0:02:21]} 28. Rg1 {[%clk 0:01:02]}  Be2 {[%clk 0:02:13]} 29. Nce3 {[%clk 0:00:44]}  Bf3 {[%clk 0:02:12]} 30. Nd6 {[%clk 0:00:41]}  Rf8 {[%clk 0:02:04]} 31. Ra1 {[%clk 0:00:28]}  Kb8 {[%clk 0:02:04]} 32. b5 {[%clk 0:00:22]}  Ne7 {[%clk 0:02:03]} 33. Rb1 {[%clk 0:00:22]}  Kc7 {[%clk 0:01:22]} 34. bxc6 {[%clk 0:00:21]}  Kxc6 {[%clk 0:01:23]} 35. Kc4 {[%clk 0:00:13]}  Be2+ {[%clk 0:01:21]} 36. Kc3 {[%clk 0:00:13]}  Kxc5 {[%clk 0:01:19]} 37. Nxb7+ {[%clk 0:00:13]}  Kc6 {[%clk 0:01:19]} 38. Na5+ {[%clk 0:00:13]}  Kd7 {[%clk 0:01:15]} 39. Rb7+ {[%clk 0:00:12]}  Ke6 {[%clk 0:01:16]} 40. Rb6+ {[%clk 0:00:11]}  Kf7 {[%clk 0:01:16]} 41. Kd2 {[%clk 0:00:10]}  Bf3 {[%clk 0:01:14]} 42. Nac4 {[%clk 0:00:09]}  Kg8 {[%clk 0:01:11]} 43. Nxe5 {[%clk 0:00:09]}  Bxe4 {[%clk 0:01:11]} 44. Ke2 {[%clk 0:00:09]}  Ra8 {[%clk 0:01:08]} 45. Rb2 {[%clk 0:00:07]}  h6 {[%clk 0:01:06]} 46. f3 {[%clk 0:00:07]}  Bh7 {[%clk 0:01:04]} 47. Kf2 {[%clk 0:00:07]}  Kf8 {[%clk 0:00:55]} 48. N3c4 {[%clk 0:00:05]}  Bg8 {[%clk 0:00:54]} 49. Nd6 {[%clk 0:00:05]}  g5 {[%clk 0:00:48]} 50. Rb7 {[%clk 0:00:05]}  Ra2+ {[%clk 0:00:37]} 51. Kg3 {[%clk 0:00:05]}  Rd2 {[%clk 0:00:38]} 52. Nd7+ {[%clk 0:00:05]}  Kg7 {[%clk 0:00:38]} 53. Nc5 {[%clk 0:00:04]}  Kf8 {[%clk 0:00:32]} 54. Nde4 {[%clk 0:00:04]}  Nf5+ {[%clk 0:00:30]} 55. Kg4 {[%clk 0:00:04]}  Ne3+ {[%clk 0:00:30]} 56. Kh5 {[%clk 0:00:04]}  Rxh2+ {[%clk 0:00:30]} 57. Kg6 {[%clk 0:00:04]}  Bd5 {[%clk 0:00:26]} 58. Nd7+ {[%clk 0:00:04]}  Ke8 {[%clk 0:00:27]} 59. Ndf6+ {[%clk 0:00:05]}  Kf8 {[%clk 0:00:19]} 60. Rb8+ {[%clk 0:00:05]}  Ke7 {[%clk 0:00:19]} 61. Re8# {[%clk 0:00:06]} 1-0


[Site "https://www.chess.com"]

[Event "Titled Tuesday Blitz October 25 Late 2022"]
[White "Thiel, Thomas"]
[Black "Winterberg, Lukas"]
[WhiteFideId "4615964"]
[BlackFideId "24622702"]
[WhiteElo "2243"]
[BlackElo "2349"]
[Result "0-1"]
[Round "06"]
[TimeControl "180+1"]
[Date "2022.10.26"]
[WhiteClock "0:00:40"]
[BlackClock "0:01:29"]

1. e4 {[%clk 0:03:00]}  c6 {[%clk 0:02:57]} 2. d4 {[%clk 0:02:58]}  d5 {[%clk 0:02:53]} 3. exd5 {[%clk 0:02:59]}  cxd5 {[%clk 0:02:53]} 4. c4 {[%clk 0:02:59]}  Nc6 {[%clk 0:02:53]} 5. cxd5 {[%clk 0:02:57]}  Qxd5 {[%clk 0:02:52]} 6. Nf3 {[%clk 0:02:57]}  e6 {[%clk 0:02:51]} 7. Nc3 {[%clk 0:02:55]}  Qd8 {[%clk 0:02:51]} 8. Bc4 {[%clk 0:02:52]}  Nf6 {[%clk 0:02:51]} 9. O-O {[%clk 0:02:50]}  Be7 {[%clk 0:02:51]} 10. Re1 {[%clk 0:02:46]}  O-O {[%clk 0:02:51]} 11. d5 {[%clk 0:02:44]}  Na5 {[%clk 0:02:46]} 12. Bb3 {[%clk 0:02:28]}  Nxb3 {[%clk 0:02:46]} 13. Qxb3 {[%clk 0:02:27]}  Nxd5 {[%clk 0:02:46]} 14. Nxd5 {[%clk 0:02:25]}  exd5 {[%clk 0:02:47]} 15. Bf4 {[%clk 0:02:17]}  b6 {[%clk 0:02:40]} 16. Rad1 {[%clk 0:02:12]}  Bb7 {[%clk 0:02:37]} 17. Nd4 {[%clk 0:02:08]}  Re8 {[%clk 0:02:30]} 18. Nf5 {[%clk 0:01:48]}  Bc5 {[%clk 0:02:22]} 19. Rxe8+ {[%clk 0:01:38]}  Qxe8 {[%clk 0:02:23]} 20. Nd6 {[%clk 0:01:35]}  Qe2 {[%clk 0:02:13]} 21. Nxb7 {[%clk 0:01:18]}  Qxf2+ {[%clk 0:02:12]} 22. Kh1 {[%clk 0:01:17]}  Qxf4 {[%clk 0:02:13]} 23. Nxc5 {[%clk 0:01:16]}  bxc5 {[%clk 0:02:14]} 24. Qxd5 {[%clk 0:01:15]}  Re8 {[%clk 0:02:04]} 25. Qxc5 {[%clk 0:01:12]}  a6 {[%clk 0:01:56]} 26. h3 {[%clk 0:01:11]}  h6 {[%clk 0:01:54]} 27. Qc6 {[%clk 0:01:03]}  Re2 {[%clk 0:01:49]} 28. Qxa6 {[%clk 0:00:57]}  Rxb2 {[%clk 0:01:45]} 29. a4 {[%clk 0:00:47]}  Qe4 {[%clk 0:01:36]} 30. Rg1 {[%clk 0:00:44]}  Kh7 {[%clk 0:01:31]} 31. a5 {[%clk 0:00:44]}  Rb3 {[%clk 0:01:30]} 32. Qd6 {[%clk 0:00:40]}  Rxh3+ {[%clk 0:01:29]} 0-1


[Site "https://www.chess.com"]

[Event "Titled Tuesday Blitz October 25 Late 2022"]
[White "Thomforde-Toates, Noah"]
[Black "Leenhouts, Koen"]
[WhiteFideId "30951992"]
[BlackFideId "1008439"]
[WhiteElo "2660"]
[BlackElo "2409"]
[Result "0-1"]
[Round "06"]
[TimeControl "180+1"]
[Date "2022.10.26"]
[WhiteClock "0:00:19"]
[BlackClock "0:00:14"]

1. d4 {[%clk 0:03:00]}  Nf6 {[%clk 0:02:55]} 2. Nc3 {[%clk 0:03:01]}  d5 {[%clk 0:02:55]} 3. Bf4 {[%clk 0:02:59]}  e6 {[%clk 0:02:50]} 4. e3 {[%clk 0:02:59]}  Bd6 {[%clk 0:02:49]} 5. Nf3 {[%clk 0:02:57]}  Bxf4 {[%clk 0:02:49]} 6. exf4 {[%clk 0:02:57]}  O-O {[%clk 0:02:45]} 7. Ne5 {[%clk 0:02:50]}  c5 {[%clk 0:02:43]} 8. dxc5 {[%clk 0:02:48]}  Nfd7 {[%clk 0:02:29]} 9. Bd3 {[%clk 0:02:43]}  Nxc5 {[%clk 0:02:23]} 10. O-O {[%clk 0:02:43]}  Nxd3 {[%clk 0:02:21]} 11. Qxd3 {[%clk 0:02:42]}  Nc6 {[%clk 0:02:21]} 12. Rfe1 {[%clk 0:02:41]}  Bd7 {[%clk 0:02:07]} 13. Ne2 {[%clk 0:02:34]}  Nxe5 {[%clk 0:02:04]} 14. fxe5 {[%clk 0:02:32]}  Rc8 {[%clk 0:02:03]} 15. Nd4 {[%clk 0:02:32]}  Rc4 {[%clk 0:01:50]} 16. c3 {[%clk 0:02:30]}  b5 {[%clk 0:01:48]} 17. a3 {[%clk 0:02:29]}  a5 {[%clk 0:01:46]} 18. Re3 {[%clk 0:02:21]}  b4 {[%clk 0:01:40]} 19. axb4 {[%clk 0:02:19]}  axb4 {[%clk 0:01:39]} 20. Rh3 {[%clk 0:02:18]}  h6 {[%clk 0:01:33]} 21. Qg3 {[%clk 0:02:09]}  bxc3 {[%clk 0:01:26]} 22. bxc3 {[%clk 0:02:06]}  Qg5 {[%clk 0:01:15]} 23. f4 {[%clk 0:01:50]}  Qxg3 {[%clk 0:01:11]} 24. Rxg3 {[%clk 0:01:50]}  Rfc8 {[%clk 0:01:10]} 25. Ra3 {[%clk 0:01:47]}  g6 {[%clk 0:01:08]} 26. Kf2 {[%clk 0:01:43]}  Rb8 {[%clk 0:01:05]} 27. Re3 {[%clk 0:01:42]}  Rb2+ {[%clk 0:00:57]} 28. Re2 {[%clk 0:01:42]}  Rb1 {[%clk 0:00:57]} 29. Ke3 {[%clk 0:01:29]}  Bb5 {[%clk 0:00:54]} 30. Rea2 {[%clk 0:01:18]}  Kg7 {[%clk 0:00:49]} 31. g3 {[%clk 0:00:56]}  Rc5 {[%clk 0:00:40]} 32. Kd2 {[%clk 0:00:46]}  Rh1 {[%clk 0:00:37]} 33. Ke3 {[%clk 0:00:41]}  Re1+ {[%clk 0:00:34]} 34. Kf2 {[%clk 0:00:38]}  Rf1+ {[%clk 0:00:32]} 35. Kg2 {[%clk 0:00:36]}  Rb1 {[%clk 0:00:21]} 36. Ra5 {[%clk 0:00:28]}  Bf1+ {[%clk 0:00:20]} 37. Kf2 {[%clk 0:00:26]}  Rxc3 {[%clk 0:00:19]} 38. Ra7 {[%clk 0:00:25]}  Bc4 {[%clk 0:00:16]} 39. Nxe6+ {[%clk 0:00:23]}  Kg8 {[%clk 0:00:16]} 40. Ra8+ {[%clk 0:00:19]}  Kh7 {[%clk 0:00:16]} 41. Nf8+ {[%clk 0:00:20]}  Kg7 {[%clk 0:00:15]} 42. R2a7 {[%clk 0:00:20]}  Rb2+ {[%clk 0:00:13]} 43. Ke1 {[%clk 0:00:19]}  Rc1# {[%clk 0:00:14]} 0-1


[Site "https://www.chess.com"]